bitfinex/quotes_SOLUSD_20230113
["timestamp","ask_amount","ask_price","bid_price","bid_amount"]
[1673598310866,115.5179,17.081,17.052,25.1556]
[1673598311082,115.5179,17.081,17.053,193.3553]
[1673598311291,115.5179,17.081,17.054,20.0]
[1673598311514,115.5179,17.081,17.055,178.2]
[1673598311725,115.5179,17.081,17.056,10.0]
[1673598312250,0.0093646,17.069,17.057,178.2]
[1673598312469,0.0093646,17.069,17.058,26.26575178]
[1673598312774,0.0093646,17.069,17.058,11.11196178]
[1673598313495,0.0093646,17.069,17.058,41.57879979]
[1673598313709,0.0093646,17.069,17.061,1.11196178]
[1673598313936,0.0093646,17.069,17.063,10.0]
[1673598314129,0.0093646,17.069,17.065,1.11196178]
[1673598314673,0.0093646,17.069,17.065,10.0]
[1673598314890,110.7253,17.091,17.066,178.97610357]
[1673598315077,110.7253,17.091,17.066,5.92747357]
[1673598315419,109.7253,17.091,17.065,10.0]
[1673598315727,109.7253,17.091,17.066,30.46683801]
[1673598315949,109.7253,17.091,17.067,5.15107]
[1673598316462,109.7253,17.091,17.068,10.69089669]
[1673598316649,112.2268,17.098,17.069,5.15047]
[1673598316987,112.2268,17.098,17.07,179.09003762]
[1673598317302,12.6143,17.109,17.072,10.0]
[1673598317608,108.6622,17.108,17.076,0.95852085]
[1673598317824,108.6622,17.108,17.078,1.0]
[1673598318011,108.6622,17.108,17.08,1.0]
[1673598318222,10.0,17.117,17.081,183.34685]
[1673598318453,10.0,17.123,17.082,26.14655]
[1673598318656,10.0,17.123,17.083,15.14625]
[1673598318862,10.0,17.123,17.084,204.34595]
[1673598318863,49.25000066,17.121,17.084,204.34595]
[1673598319182,10.0,17.12,17.085,10.0]
[1673598319385,10.0,17.12,17.086,1.0]
[1673598319592,10.0,17.12,17.086,11.0]
[1673598319794,59.25000066,17.12,17.086,11.0]
[1673598320426,10.0,17.119,17.085,1.0]
[1673598321588,20.0,17.113,17.086,30.46683801]
[1673598321793,20.0,17.113,17.088,10.0]
[1673598322011,20.0,17.113,17.088,15.14474]
[1673598322424,10.0,17.112,17.088,5.14474]
[1673598322655,20.0,17.111,17.083,10.0]
[1673598323067,17.0,17.11,17.083,10.0]
[1673598323282,17.0,17.11,17.084,0.60650296]
[1673598323496,82.32044936,17.114,17.083,10.0]
[1673598323819,33.0704487,17.114,17.084,6.14595]
[1673598324125,33.0704487,17.114,17.084,36.61278801]
[1673598324341,33.0704487,17.114,17.085,10.0]
[1673598324527,33.0704487,17.114,17.086,1.0]
[1673598325075,82.32044936,17.114,17.084,5.14595]
[1673598325270,10.0,17.113,17.079,10.0]
[1673598325488,15.20675,17.113,17.079,10.0]
[1673598325808,15.20675,17.113,17.07,10.0]
[1673598325809,197.16040066,17.112,17.076,1228.6]
[1673598326008,15.20675,17.111,17.076,1228.6]
[1673598326214,25.20675,17.11,17.076,1228.6]
[1673598326433,10.0,17.108,17.076,1228.6]
[1673598326641,42.20619,17.107,17.076,1228.6]
[1673598326970,5.20619,17.106,17.076,1228.6]
[1673598327176,17.0,17.105,17.076,1228.6]
[1673598327375,17.0,17.105,17.077,10.0]
[1673598327579,17.0,17.105,17.078,1228.6]
[1673598328225,54.45619066,17.106,17.079,10.0]
[1673598328439,10.0,17.116,17.079,1243.74745]
[1673598328650,20.0,17.111,17.08,40.46683801]
[1673598328860,25.20675,17.111,17.08,1238.6]
[1673598329181,54.45675066,17.11,17.08,1228.6]
[1673598329365,10.0,17.109,17.08,1228.6]
[1673598329575,5.20675,17.108,17.08,1228.6]
[1673598329790,20.0,17.107,17.08,1228.6]
[1673598330106,15.20675,17.106,17.08,1228.6]
[1673598330321,37.0,17.105,17.08,1228.6]
[1673598330529,15.20675,17.104,17.08,1228.6]
[1673598330743,42.20675,17.103,17.08,1228.6]
[1673598331174,91.45675066,17.103,17.08,1228.6]
[1673598331487,49.25000066,17.102,17.08,1228.6]
[1673598331693,37.0,17.101,17.08,1228.6]
[1673598331891,80.9885506,17.101,17.073,396.6]
[1673598332105,54.45675066,17.1,17.073,396.6]
[1673598332319,10.0,17.098,17.073,396.6]
[1673598332536,22.20675,17.097,17.073,396.6]
[1673598332762,25.20675,17.096,17.073,396.6]
[1673598332947,22.20648,17.095,17.073,396.6]
[1673598333159,35.20648,17.094,17.073,384.0746]
[1673598333385,35.20648,17.094,17.066,396.6]
[1673598333386,10.0,17.092,17.066,396.6]
[1673598333601,25.20675,17.091,17.066,396.6]
[1673598333795,22.20595,17.09,17.061,396.6]
[1673598334015,25.20595,17.089,17.061,396.6]
[1673598334331,10.0,17.087,17.061,396.6]
[1673598334548,42.20569,17.086,17.061,396.6]
[1673598334737,5.20569,17.085,17.061,396.6]
[1673598334949,37.0,17.084,17.061,396.6]
[1673598335166,42.20675,17.084,17.061,396.6]
[1673598335383,5.20675,17.083,17.061,396.6]
[1673598335592,37.0,17.082,17.061,396.6]
[1673598335909,15.20675,17.081,17.061,396.6]
[1673598336114,37.0,17.08,17.061,396.6]
[1673598337055,20.0,17.08,17.061,396.6]
[1673598338649,20.0,17.08,17.057,10.0]
[1673598338955,20.0,17.08,17.054,10.0]
[1673598339167,17.0,17.079,17.053,396.6]
[1673598339364,20.0,17.078,17.053,396.6]
[1673598339575,17.0,17.077,17.053,396.6]
[1673598339797,20.0,17.076,17.053,396.6]
[1673598339990,17.0,17.075,17.053,396.6]
[1673598340201,20.0,17.074,17.053,396.6]
[1673598340417,17.0,17.073,17.054,10.0]
[1673598340625,20.0,17.072,17.054,10.0]
[1673598340829,17.0,17.071,17.053,396.6]
[1673598341057,20.0,17.07,17.053,396.6]
[1673598342318,17.0,17.069,17.053,396.6]
[1673598343168,20.0,17.068,17.053,396.6]
[1673598343482,17.0,17.067,17.048,1816.7]
[1673598343675,20.0,17.066,17.04,396.6]
[1673598343882,17.0,17.065,17.042,10.0]
[1673598344087,20.0,17.064,17.042,10.0]
[1673598344301,17.0,17.063,17.042,10.0]
[1673598344513,20.0,17.062,17.041,1228.6]
[1673598345055,20.0,17.062,17.042,10.0]
[1673598345268,17.0,17.061,17.042,10.0]
[1673598345469,20.0,17.06,17.042,10.0]
[1673598346110,20.0,17.06,17.041,1228.6]
[1673598346318,17.0,17.059,17.041,1228.6]
[1673598346845,20.0,17.058,17.041,1228.6]
[1673598347059,27.0,17.057,17.041,1228.6]
[1673598347244,10.0,17.055,17.04,396.6]
[1673598347454,10.0,17.053,17.04,396.6]
[1673598347670,20.0,17.052,17.03,396.6]
[1673598347880,17.0,17.051,17.03,396.6]
[1673598348089,20.0,17.05,17.03,396.6]
[1673598348312,17.0,17.049,17.03,396.6]
[1673598348529,20.0,17.048,17.03,396.6]
[1673598348732,17.0,17.047,17.022,1635.2]
[1673598348931,20.0,17.046,17.022,1635.2]
[1673598349139,20.0,17.046,17.023,10.0]
[1673598349358,17.0,17.045,17.023,10.0]
[1673598349679,20.0,17.044,17.023,10.0]
[1673598350214,17.0,17.043,17.023,10.0]
[1673598350413,20.0,17.042,17.023,10.0]
[1673598351778,20.0,17.051,17.023,10.0]
[1673598352825,17.0,17.05,17.023,10.0]
[1673598353239,20.0,17.049,17.023,10.0]
[1673598353450,17.0,17.048,17.023,10.0]
[1673598353661,20.0,17.047,17.023,10.0]
[1673598353870,17.0,17.046,17.023,10.0]
[1673598354083,20.0,17.045,17.023,10.0]
[1673598354303,17.0,17.044,17.023,10.0]
[1673598354519,20.0,17.043,17.023,10.0]
[1673598354719,17.0,17.042,17.023,10.0]
[1673598354933,17.0,17.042,17.022,1625.2]
[1673598355147,20.0,17.041,17.022,1625.2]
[1673598355365,17.0,17.04,17.022,1625.2]
[1673598355567,20.0,17.039,17.022,1625.2]
[1673598355782,17.0,17.038,17.022,1625.2]
[1673598355990,20.0,17.037,17.022,1625.2]
[1673598356182,17.0,17.036,17.022,1625.2]
[1673598356393,20.0,17.035,17.022,1228.6]
[1673598356614,17.0,17.034,17.022,1228.6]
[1673598356825,20.0,17.033,17.022,1228.6]
[1673598357454,20.0,17.043,17.022,1228.6]
[1673598357663,17.0,17.042,17.022,1228.6]
[1673598357888,20.0,17.041,17.022,1228.6]
[1673598358080,20.0,17.041,17.023,10.0]
[1673598358285,110.6239,17.052,17.023,10.0]
[1673598358494,110.6239,17.052,17.023,123.6149]
[1673598359150,110.6239,17.052,17.024,10.0]
[1673598359757,110.6239,17.052,17.023,123.6149]
[1673598359994,10.0,17.051,17.023,123.6149]
[1673598360388,10.0,17.051,17.023,113.6149]
[1673598360600,20.0,17.05,17.023,113.6149]
[1673598360915,25.20675,17.05,17.023,113.6149]
[1673598361332,10.0,17.048,17.019,110.5369]
[1673598361549,42.20675,17.047,17.019,110.5369]
[1673598361776,25.20675,17.047,17.019,110.5369]
[1673598361994,17.0,17.046,17.02,10.0]
[1673598362300,20.0,17.045,17.02,10.0]
[1673598362510,17.0,17.044,17.02,10.0]
[1673598362724,20.0,17.043,17.02,10.0]
[1673598362912,17.0,17.042,17.02,10.0]
[1673598363118,20.0,17.041,17.02,10.0]
[1673598363333,17.0,17.04,17.02,10.0]
[1673598363561,20.0,17.039,17.02,10.0]
[1673598363777,17.0,17.038,17.02,10.0]
[1673598363972,20.0,17.037,17.02,10.0]
[1673598364291,5.20675,17.047,17.02,10.0]
[1673598364292,5.20675,17.047,17.021,1228.6]
[1673598364503,110.6239,17.052,17.021,1228.6]
[1673598364717,110.6239,17.052,17.022,10.0]
[1673598364932,110.6239,17.052,17.022,1238.6]
[1673598365251,110.6239,17.052,17.023,10.0]
[1673598365672,20.0,17.051,17.023,10.0]
[1673598365881,17.0,17.05,17.023,10.0]
[1673598366089,17.0,17.051,17.023,10.0]
[1673598367152,20.0,17.05,17.023,10.0]
[1673598367336,17.0,17.049,17.023,10.0]
[1673598367663,20.0,17.048,17.023,10.0]
[1673598367877,42.13380066,17.055,17.023,10.0]
[1673598368069,10.0,17.063,17.024,20.0]
[1673598368280,109.4894,17.061,17.024,20.0]
[1673598368489,5.20675,17.06,17.024,20.0]
[1673598368720,5.20675,17.06,17.025,178.2]
[1673598368930,5.20675,17.06,17.026,10.0]
[1673598369133,5.20675,17.06,17.027,114.3887]
[1673598369347,20.0,17.059,17.028,10.0]
[1673598369561,20.0,17.059,17.028,124.8938]
[1673598369752,148.94001701,17.061,17.029,10.0]
[1673598370928,39.45061701,17.061,17.029,10.0]
[1673598371135,20.0,17.06,17.029,10.0]
[1673598371324,20.0,17.063,17.029,10.0]
[1673598372693,135.42313267,17.072,17.03,203.36226]
[1673598372908,114.3353,17.071,17.032,10.0]
[1673598373118,114.3353,17.071,17.033,20.0]
[1673598373679,114.3353,17.071,17.034,10.0]
[1673598373871,114.3353,17.071,17.036,178.2]
[1673598374055,114.3353,17.071,17.038,178.2]
[1673598374056,20.0,17.07,17.038,178.2]
[1673598374395,25.20675,17.07,17.037,236.3722]
[1673598374709,5.20675,17.069,17.037,236.3722]
[1673598374910,20.0,17.068,17.038,10.0]
[1673598375323,17.0,17.067,17.038,10.0]
[1673598375534,20.0,17.066,17.038,10.0]
[1673598375754,17.0,17.065,17.038,10.0]
[1673598376178,20.0,17.064,17.038,10.0]
[1673598376490,17.0,17.063,17.038,10.0]
[1673598376804,20.0,17.062,17.038,10.0]
[1673598377020,20.0,17.062,17.037,226.3722]
[1673598377021,17.0,17.061,17.037,226.3722]
[1673598377208,20.0,17.06,17.037,226.3722]
[1673598377419,17.0,17.059,17.037,226.3722]
[1673598377644,20.0,17.058,17.037,226.3722]
[1673598377836,17.0,17.057,17.038,10.0]
[1673598378270,17.0,17.057,17.037,226.3722]
[1673598378486,20.0,17.056,17.037,226.3722]
[1673598378697,17.0,17.055,17.037,226.3722]
[1673598379107,20.0,17.054,17.037,226.3722]
[1673598379423,17.0,17.053,17.037,226.3722]
[1673598379632,20.0,17.052,17.037,226.3722]
[1673598379849,17.0,17.051,17.037,226.3722]
[1673598380059,20.0,17.05,17.037,226.3722]
[1673598380280,17.0,17.049,17.037,226.3722]
[1673598380591,20.0,17.048,17.037,226.3722]
[1673598381655,20.0,17.048,17.03,10.0]
[1673598381656,17.0,17.047,17.032,116.0037]
[1673598381847,20.0,17.046,17.028,114.8938]
[1673598382044,17.0,17.045,17.028,114.8938]
[1673598382254,20.0,17.044,17.028,114.8938]
[1673598382474,17.0,17.043,17.028,114.8938]
[1673598382698,20.0,17.042,17.028,114.8938]
[1673598382896,17.0,17.041,17.028,114.8938]
[1673598383096,20.0,17.04,17.028,114.8938]
[1673598383305,17.0,17.039,17.019,110.5369]
[1673598383530,20.0,17.038,17.02,113.0006]
[1673598383741,17.0,17.037,17.02,113.0006]
[1673598383935,20.0,17.036,17.021,10.0]
[1673598384357,17.0,17.035,17.02,113.0006]
[1673598384585,20.0,17.034,17.02,113.0006]
[1673598384894,17.0,17.033,17.02,113.0006]
[1673598385113,20.0,17.032,17.02,113.0006]
[1673598385322,17.0,17.031,17.02,113.0006]
[1673598385644,20.0,17.03,17.02,113.0006]
[1673598385853,20.0,17.03,17.019,110.5369]
[1673598386475,17.0,17.029,17.019,110.5369]
[1673598386795,20.0,17.028,17.014,10.0]
[1673598386985,20.0,17.028,17.013,111.6959]
[1673598387530,20.0,17.028,17.014,10.0]
[1673598387954,17.0,17.027,17.013,111.6959]
[1673598388262,20.0,17.026,17.006,10.0]
[1673598388455,17.0,17.025,17.008,111.6959]
[1673598388667,20.0,17.024,17.008,111.6959]
[1673598389433,17.0,17.023,17.008,111.6959]
[1673598389631,20.0,17.022,17.008,111.6959]
[1673598389954,6.0838998,17.022,17.008,111.6959]
[1673598390138,10.0,17.03,17.009,10.0]
[1673598390351,10.0,17.03,17.002,10.0]
[1673598390577,10.0,17.028,17.004,10.0]
[1673598390771,15.20675,17.028,17.004,10.0]
[1673598391193,20.0,17.027,17.004,10.0]
[1673598392477,17.0,17.026,17.004,10.0]
[1673598392665,20.0,17.025,17.004,10.0]
[1673598392872,10.0,17.023,16.993,40.58496641]
[1673598393082,37.0,17.022,16.998,110.2161]
[1673598393607,5.20675,17.021,16.998,110.2161]
[1673598393823,27.0,17.02,16.998,110.2161]
[1673598394021,20.0,17.019,16.998,110.2161]
[1673598394247,17.0,17.018,16.998,110.2161]
[1673598394460,25.20675,17.017,16.986,10.0]
[1673598394781,10.0,17.015,16.984,10.0]
[1673598394967,5.20647,17.014,16.985,110.0585]
[1673598395182,17.0,17.013,16.985,110.0585]
[1673598395392,10.0,17.011,16.986,10.0]
[1673598395600,37.0,17.01,16.986,10.0]
[1673598396493,20.0,17.01,16.986,10.0]
[1673598396703,20.0,17.012,16.986,10.0]
[1673598396898,20.0,17.013,16.986,10.0]
[1673598397324,20.0,17.013,16.993,10.0]
[1673598397859,17.0,17.012,16.986,10.0]
[1673598398169,20.0,17.011,16.986,10.0]
[1673598398357,17.0,17.01,16.986,10.0]
[1673598398567,20.0,17.009,16.985,110.0585]
[1673598398782,17.0,17.008,16.986,10.0]
[1673598398985,20.0,17.007,16.986,10.0]
[1673598399209,17.0,17.006,16.986,10.0]
[1673598399536,20.0,17.005,16.986,10.0]
[1673598399845,17.0,17.004,16.986,10.0]
[1673598400054,20.0,17.003,16.985,110.0585]
[1673598400275,17.0,17.002,16.985,110.0585]
[1673598400677,20.0,17.001,16.985,110.0585]
[1673598400892,17.0,17.0,16.985,110.0585]
[1673598401111,20.0,16.999,16.985,110.0585]
[1673598401848,17.0,16.998,16.985,110.0585]
[1673598402591,20.0,16.999,16.986,10.0]
[1673598402893,20.0,17.007,16.986,10.0]
[1673598403094,20.0,17.008,16.986,10.0]
[1673598403957,20.0,17.013,16.986,10.0]
[1673598405096,5.20647,17.014,16.987,1228.6]
[1673598405299,113.5114,17.019,16.987,1259.06683801]
[1673598405509,113.5114,17.019,16.988,10.0]
[1673598405725,113.5114,17.019,16.99,10.0]
[1673598405927,113.5114,17.019,16.992,10.0]
[1673598406136,113.5114,17.019,16.992,1354.1769]
[1673598406458,113.5114,17.019,16.993,10.0]
[1673598407181,42.13380066,17.021,16.994,116.827]
[1673598407388,47.34055066,17.021,16.995,10.0]
[1673598407618,5.20675,17.02,16.995,10.0]
[1673598407809,47.34055066,17.02,16.995,10.0]
[1673598408022,20.0,17.019,16.995,10.0]
[1673598408232,17.0,17.018,16.995,10.0]
[1673598408451,20.0,17.017,16.995,10.0]
[1673598408657,17.0,17.016,16.995,10.0]
[1673598408871,20.0,17.015,16.995,10.0]
[1673598409079,17.0,17.014,16.995,10.0]
[1673598409307,20.0,17.013,16.995,10.0]
[1673598409495,17.0,17.012,16.995,10.0]
[1673598409707,20.0,17.011,16.995,10.0]
[1673598409916,17.0,17.01,16.995,10.0]
[1673598410133,20.0,17.009,16.995,10.0]
[1673598410542,20.0,17.011,16.995,10.0]
[1673598410875,20.0,17.021,16.995,10.0]
[1673598411094,20.0,17.022,16.995,10.0]
[1673598412041,62.13380066,17.022,16.995,10.0]
[1673598412349,17.0,17.021,16.995,10.0]
[1673598412559,20.0,17.02,16.995,10.0]
[1673598412774,17.0,17.019,16.995,10.0]
[1673598412969,20.0,17.018,16.995,10.0]
[1673598413179,17.0,17.017,16.995,10.0]
[1673598413714,20.0,17.016,16.995,10.0]
[1673598413924,17.0,17.015,16.995,10.0]
[1673598414123,20.0,17.014,16.995,10.0]
[1673598414332,17.0,17.013,16.995,10.0]
[1673598414542,20.0,17.012,16.995,10.0]
[1673598415395,17.0,17.011,16.994,116.827]
[1673598415587,20.0,17.01,16.994,116.827]
[1673598415799,17.0,17.009,16.994,116.827]
[1673598416009,20.0,17.008,16.994,116.827]
[1673598417178,17.0,17.007,16.994,116.827]
[1673598417800,17.0,17.007,16.992,1344.1769]
[1673598418015,20.0,17.006,16.992,1344.1769]
[1673598418226,17.0,17.005,16.992,1344.1769]
[1673598418452,20.0,17.004,16.992,1344.1769]
[1673598418774,17.0,17.003,16.992,1344.1769]
[1673598418980,20.0,17.002,16.992,1344.1769]
[1673598419307,20.0,17.002,16.992,1228.6]
[1673598421085,17.0,17.001,16.992,1228.6]
[1673598421293,20.0,17.0,16.992,1228.6]
[1673598421493,20.0,17.002,16.985,10.0]
[1673598422025,17.0,17.001,16.985,10.0]
[1673598422346,20.0,17.0,16.984,113.786]
[1673598422536,17.0,16.999,16.984,113.786]
[1673598422747,20.0,16.998,16.984,113.786]
[1673598422975,20.0,16.998,16.985,10.0]
[1673598423819,20.0,17.01,16.985,10.0]
[1673598424006,17.0,17.009,16.985,10.0]
[1673598424210,20.0,17.008,16.985,10.0]
[1673598424440,17.0,17.007,16.985,10.0]
[1673598424646,20.0,17.006,16.985,10.0]
[1673598424867,17.0,17.005,16.985,10.0]
[1673598425066,20.0,17.004,16.985,10.0]
[1673598425488,10.0,17.022,16.986,30.58496641]
[1673598425815,115.1757,17.02,16.987,206.88496641]
[1673598426001,115.1757,17.02,16.988,10.0]
[1673598426851,20.0,17.019,16.989,10.0]
[1673598427490,115.1757,17.02,16.991,10.0]
[1673598427696,115.1757,17.02,16.992,228.0989]
[1673598427915,115.1757,17.02,16.993,10.0]
[1673598428732,42.13380066,17.022,16.994,30.58496641]
[1673598428946,154.14474258,17.032,16.996,30.58496641]
[1673598428947,111.4138,17.029,16.996,30.58496641]
[1673598429163,153.54760066,17.029,16.997,40.58496641]
[1673598429367,42.13380066,17.028,17.0,10.0]
[1673598429585,42.13380066,17.028,17.001,109.089]
[1673598429586,88.37412584,17.028,17.001,109.089]
[1673598429906,42.13380066,17.028,17.002,10.0]
[1673598430130,46.24032518,17.027,17.002,10.0]
[1673598431799,20.0,17.026,17.002,10.0]
[1673598432326,46.24032518,17.025,17.002,10.0]
[1673598432537,20.0,17.024,17.002,10.0]
[1673598433268,66.24032518,17.024,17.002,10.0]
[1673598434446,17.0,17.023,17.002,10.0]
[1673598434640,20.0,17.022,17.002,10.0]
[1673598434851,66.24032518,17.024,17.002,10.0]
[1673598436018,17.0,17.023,17.002,10.0]
[1673598436234,20.0,17.022,17.002,10.0]
[1673598436416,17.0,17.021,17.002,10.0]
[1673598436632,20.0,17.02,17.002,10.0]
[1673598436855,17.0,17.019,17.002,10.0]
[1673598437175,20.0,17.018,17.002,10.0]
[1673598437389,17.0,17.017,17.002,10.0]
[1673598437919,20.0,17.018,17.002,10.0]
[1673598438116,20.0,17.022,17.002,10.0]
[1673598438310,17.0,17.021,17.002,10.0]
[1673598438521,20.0,17.02,17.002,10.0]
[1673598438732,17.0,17.019,17.002,10.0]
[1673598438964,20.0,17.018,17.002,10.0]
[1673598439173,17.0,17.017,17.002,10.0]
[1673598440541,17.0,17.017,17.001,224.1799]
[1673598440950,20.0,17.018,17.002,10.0]
[1673598441164,46.24032518,17.023,17.002,10.0]
[1673598441165,20.0,17.022,17.002,10.0]
[1673598441375,17.0,17.021,17.002,10.0]
[1673598441594,20.0,17.02,17.002,10.0]
[1673598442437,20.0,17.022,17.002,10.0]
[1673598442756,46.24032518,17.029,17.002,10.0]
[1673598442966,111.5333,17.04,17.003,201.47046]
[1673598443167,111.5333,17.04,17.004,15.17016]
[1673598443378,46.24032518,17.036,17.006,10.0]
[1673598443594,5.20675,17.035,17.006,10.0]
[1673598444012,66.24032518,17.034,17.001,224.1799]
[1673598444209,15.20675,17.033,17.002,10.0]
[1673598444531,25.20675,17.032,17.002,10.0]
[1673598444747,230.74597584,17.032,17.002,10.0]
[1673598444965,93.58087584,17.031,17.002,10.0]
[1673598445157,42.20675,17.03,17.002,10.0]
[1673598445369,130.58087584,17.03,17.002,10.0]
[1673598445692,46.24032518,17.029,17.002,10.0]
[1673598445908,17.0,17.028,17.002,10.0]
[1673598446114,20.0,17.027,17.002,10.0]
[1673598446307,17.0,17.026,17.002,10.0]
[1673598446745,20.0,17.025,17.002,10.0]
[1673598446954,17.0,17.024,17.001,224.1799]
[1673598447173,20.0,17.023,17.001,224.1799]
[1673598447477,17.0,17.022,17.001,224.1799]
[1673598447698,20.0,17.021,17.001,224.1799]
[1673598447887,17.0,17.02,17.001,224.1799]
[1673598448098,20.0,17.019,17.001,224.1799]
[1673598448317,17.0,17.018,17.001,224.1799]
[1673598448524,20.0,17.017,17.001,224.1799]
[1673598448858,17.0,17.016,17.001,224.1799]
[1673598449157,20.0,17.015,17.001,224.1799]
[1673598449375,17.0,17.014,17.001,224.1799]
[1673598449798,20.0,17.013,17.001,224.1799]
[1673598449990,17.0,17.012,17.001,224.1799]
[1673598450204,20.0,17.011,16.986,10.0]
[1673598450410,17.0,17.01,16.993,117.3502]
[1673598450621,20.0,17.009,16.993,117.3502]
[1673598450825,17.0,17.008,16.993,117.3502]
[1673598451048,20.0,17.007,16.993,117.3502]
[1673598451369,17.0,17.006,16.993,117.3502]
[1673598451577,17.0,17.006,16.986,10.0]
[1673598451790,20.0,17.005,16.987,117.3502]
[1673598452003,17.0,17.004,16.987,117.3502]
[1673598452194,17.0,17.004,16.983,117.3605]
[1673598452195,20.0,17.003,16.983,117.3605]
[1673598452405,17.0,17.002,16.983,117.3605]
[1673598452636,20.0,17.001,16.983,117.3605]
[1673598452849,17.0,17.0,16.983,117.3605]
[1673598453053,20.0,16.999,16.98,117.3502]
[1673598453265,17.0,16.998,16.98,117.3502]
[1673598453471,20.0,16.997,16.981,10.0]
[1673598453685,17.0,16.996,16.981,10.0]
[1673598454105,20.0,16.997,16.981,10.0]
[1673598454315,20.0,17.007,16.981,10.0]
[1673598454527,20.0,17.008,16.981,40.46683801]
[1673598454753,20.0,17.008,16.981,10.0]
[1673598455915,66.24032518,17.008,16.981,10.0]
[1673598456137,66.24032518,17.008,16.98,124.8502]
[1673598456440,22.20675,17.007,16.981,10.0]
[1673598456638,20.0,17.006,16.981,10.0]
[1673598456847,17.0,17.005,16.981,10.0]
[1673598457051,20.0,17.004,16.981,10.0]
[1673598457263,17.0,17.003,16.981,10.0]
[1673598457496,20.0,17.002,16.981,10.0]
[1673598457700,17.0,17.001,16.98,114.8502]
[1673598457889,20.0,17.0,16.98,114.8502]
[1673598458105,17.0,16.999,16.98,114.8502]
[1673598458316,20.0,16.998,16.98,114.8502]
[1673598458653,17.0,16.997,16.98,114.8502]
[1673598459373,20.0,16.996,16.98,114.8502]
[1673598459601,17.0,16.995,16.98,114.8502]
[1673598459819,20.0,16.994,16.98,114.8502]
[1673598460017,17.0,16.993,16.98,114.8502]
[1673598460216,20.0,16.992,16.98,114.8502]
[1673598460426,17.0,16.991,16.98,114.8502]
[1673598460754,20.0,16.99,16.98,114.8502]
[1673598460943,20.0,16.99,16.974,115.4929]
[1673598461155,17.0,16.989,16.974,115.4929]
[1673598461364,20.0,16.988,16.974,115.4929]
[1673598463690,20.0,16.999,16.974,115.4929]
[1673598463912,17.0,16.998,16.975,10.0]
[1673598464217,20.0,16.997,16.975,10.0]
[1673598464432,17.0,16.996,16.975,10.0]
[1673598464617,20.0,16.995,16.975,10.0]